{"text_format":"3","workbook":"xlsx","n_sheets":2,"sheets":["протокол","лист2"],"read":"whole","date_system":"1900"}

{"sheet":"протокол","index":0,"n_rows":29,"n_cols":10,"rows_kept":29,"merged":[[1,2,1,8],[2,0,2,10],[4,1,4,2],[4,3,4,4],[5,1,5,2],[5,3,5,4],[6,4,6,7]]}
[]
[]
["Протокол  школьного этапа Всероссийской (республиканской)  олимпиады школьников 2018/2019 учебного года по предмету _биология_____"]
[]
[null,"Этап олимпиады",null,"школьный"]
[null,"Предмет",null,"биология"]
[{"$nulls":4},"Участник олимпиады"]
[null,"№ п/п","Район","Полное наименование образовательного учреждения (по уставу)","Фамилия","Класс","Количество баллов","Статус (победитель/призер)","Максимально возможное кол-во баллов  по предмету мун.этапа","ФИО педагога, подготовившего, участника олимпиады)"]
[null,1,"Рыбно-Слободский район ","МБОУ \"Рыбно-Слободская гимназия №1\"","Халитова Дина","5А",20,"победитель",28,"Хабибуллина Г.А."]
[null,2,{"$f":"C9","v":"Рыбно-Слободский район "},{"$f":"D9","v":"МБОУ \"Рыбно-Слободская гимназия №1\""},"Мингарипова Азалия","5А",17,"призёр",28,{"$f":"$J$9","v":"Хабибуллина Г.А."}]
[null,3,"Рыбно-Слободский район ","МБОУ \"Рыбно-Слободская гимназия №1\"","Гончурина Кристина",{"$f":"$F$10","v":"5А"},16,{"$f":"$H$10","v":"призёр"},28,{"$f":"$J$9","v":"Хабибуллина Г.А."}]
[null,4,"Рыбно-Слободский район ",{"$f":"$D$11","v":"МБОУ \"Рыбно-Слободская гимназия №1\""},"Мозохина Ксения","6А",20,{"$f":"H9","v":"победитель"},28,"Сафина Н.К."]
[null,5,"Рыбно-Слободский район ","МБОУ \"Рыбно-Слободская гимназия №1\"","Гизутдинов Ислам","6А",19,"призёр",28,{"$f":"$J$12","v":"Сафина Н.К."}]
[null,6,"Рыбно-Слободский район ","МБОУ \"Рыбно-Слободская гимназия №1\"","Марасова Варя","6А",18,"призёр",28,{"$f":"$J$12","v":"Сафина Н.К."}]
[null,7,"Рыбно-Слободский район ","МБОУ \"Рыбно-Слободская гимназия №1\"","Имамов Данис","7А",21,"победитель",38,{"$f":"$J$12","v":"Сафина Н.К."}]
[null,8,"Рыбно-Слободский район ","МБОУ \"Рыбно-Слободская гимназия №1\"","Фаттахов Ислам","7Б",20,"призёр",38,"Сафина Н.К."]
[null,9,"Рыбно-Слободский район ","МБОУ \"Рыбно-Слободская гимназия №1\"","Нечаева Лолита","7В",19,"призёр",38,"Сафина Н.К."]
[null,10,"Рыбно-Слободский район ","МБОУ \"Рыбно-Слободская гимназия №1\"","Файзрахманова Азалия","8А",27,"победитель",46,"Сафина Н.К."]
[null,11,"Рыбно-Слободский район ","МБОУ \"Рыбно-Слободская гимназия №1\"","Нагимуллина София","8А",24,"призёр",46,"Сафина Н.К."]
[null,12,"Рыбно-Слободский район ","МБОУ \"Рыбно-Слободская гимназия №1\"","Гизатуллин Тимур","8А",23,"призёр",46,"Сафина Н.К."]
[null,13,"Рыбно-Слободский район ","МБОУ \"Рыбно-Слободская гимназия №1\"","Крюкова Анна","9А",35,"победитель",68,"Сафина Н.К."]
[null,14,"Рыбно-Слободский район ","МБОУ \"Рыбно-Слободская гимназия №1\"","Хабибуллина Вера","9А",34,"призёр",68,"Сафина Н.К."]
[null,15,"Рыбно-Слободский район ","МБОУ \"Рыбно-Слободская гимназия №1\"","Гречанюк Дарья","9А",33,"призёр",68,"Сафина Н.К."]
[null,16,"Рыбно-Слободский район ","МБОУ \"Рыбно-Слободская гимназия №1\"","Сунгатуллин Булат","10 Б",39,"победитель",74,"Сафина Н.К."]
[null,17,"Рыбно-Слободский район ","МБОУ \"Рыбно-Слободская гимназия №1\"","Габитов Ризван","10Б",38,"призёр",74,"Сафина Н.К."]
[null,18,"Рыбно-Слободский район ","МБОУ \"Рыбно-Слободская гимназия №1\"","Зайнуллина Зарина","10Б",37,"призёр",74,"Сафина Н.К."]
[null,19,"Рыбно-Слободский район ","МБОУ \"Рыбно-Слободская гимназия №1\"","Садикова Дина","11А",54,"победитель",86,"Сафина Н.К."]
[null,20,"Рыбно-Слободский район ","МБОУ \"Рыбно-Слободская гимназия №1\"","Гарипов Искандер","11А",52,"призёр",86,"Сафина Н.К."]
[null,21,"Рыбно-Слободский район ","МБОУ \"Рыбно-Слободская гимназия №1\"","Альмиева Айзиля","11А",50,"призёр",86,"Сафина Н.К."]

{"sheet":"лист2","index":1,"n_rows":0,"n_cols":0,"rows_kept":0}